[Event "Titled Tuesday Blitz September 27 Early 2022"]
[White "Karas, Marek"]
[Black "Carlsen, Magnus"]
[WhiteFideId "14928558"]
[BlackFideId "1503014"]
[WhiteElo "2272"]
[BlackElo "2830"]
[Result "0-1"]
[Round "01"]
[TimeControl "180+1"]
[Date "2022.09.27"]
[WhiteClock "0:00:50"]
[BlackClock "0:02:09"]

1. d4 {[%clk 0:02:31]}  Nc6 {[%clk 0:02:54]} 2. Nf3 {[%clk 0:02:31]}  Nf6 {[%clk 0:02:54]} 3. c4 {[%clk 0:02:26]}  d6 {[%clk 0:02:46]} 4. Nc3 {[%clk 0:02:22]}  g6 {[%clk 0:02:45]} 5. g3 {[%clk 0:02:15]}  Bg7 {[%clk 0:02:44]} 6. Bg2 {[%clk 0:02:15]}  O-O {[%clk 0:02:44]} 7. O-O {[%clk 0:02:12]}  Bf5 {[%clk 0:02:43]} 8. b3 {[%clk 0:02:11]}  Ne4 {[%clk 0:02:42]} 9. Bb2 {[%clk 0:02:10]}  Nxc3 {[%clk 0:02:41]} 10. Bxc3 {[%clk 0:02:10]}  Be4 {[%clk 0:02:41]} 11. e3 {[%clk 0:02:07]}  a5 {[%clk 0:02:39]} 12. Nd2 {[%clk 0:02:06]}  Bxg2 {[%clk 0:02:39]} 13. Kxg2 {[%clk 0:02:07]}  e5 {[%clk 0:02:38]} 14. dxe5 {[%clk 0:01:56]}  dxe5 {[%clk 0:02:36]} 15. Qc2 {[%clk 0:01:49]}  Qe7 {[%clk 0:02:34]} 16. Rad1 {[%clk 0:01:45]}  Nb4 {[%clk 0:02:33]} 17. Qb1 {[%clk 0:01:38]}  Rfd8 {[%clk 0:02:32]} 18. Nf3 {[%clk 0:01:37]}  e4 {[%clk 0:02:31]} 19. Nd4 {[%clk 0:01:31]}  Nd3 {[%clk 0:02:30]} 20. Ne2 {[%clk 0:01:25]}  Bxc3 {[%clk 0:02:27]} 21. Nxc3 {[%clk 0:01:26]}  c6 {[%clk 0:02:27]} 22. Rd2 {[%clk 0:01:19]}  Qe5 {[%clk 0:02:27]} 23. Ne2 {[%clk 0:01:12]}  Qf6 {[%clk 0:02:19]} 24. Kg1 {[%clk 0:01:04]}  Rd6 {[%clk 0:02:09]} 25. Nf4 {[%clk 0:01:00]}  Nxf4 {[%clk 0:02:09]} 26. Rxd6 {[%clk 0:00:50]}  Ne2+ {[%clk 0:02:09]} 0-1


[Site "https://www.chess.com"]

[Event "Titled Tuesday Blitz September 27 Early 2022"]
[White "Karavade, Eesha"]
[Black "Kravtsiv, Martyn"]
[WhiteFideId "5012600"]
[BlackFideId "14113147"]
[WhiteElo "2489"]
[BlackElo "2821"]
[Result "1-0"]
[Round "01"]
[TimeControl "180+1"]
[Date "2022.09.27"]
[WhiteClock "0:00:15"]
[BlackClock "0:00:01"]

1. d4 {[%clk 0:02:59]}  d5 {[%clk 0:02:54]} 2. c4 {[%clk 0:02:58]}  e6 {[%clk 0:02:54]} 3. Nf3 {[%clk 0:02:58]}  Be7 {[%clk 0:02:53]} 4. Nc3 {[%clk 0:02:56]}  Nf6 {[%clk 0:02:53]} 5. Bf4 {[%clk 0:02:53]}  Nbd7 {[%clk 0:02:51]} 6. e3 {[%clk 0:02:50]}  O-O {[%clk 0:02:49]} 7. h3 {[%clk 0:02:47]}  b6 {[%clk 0:02:47]} 8. Qc2 {[%clk 0:02:40]}  Bb7 {[%clk 0:02:46]} 9. cxd5 {[%clk 0:02:29]}  exd5 {[%clk 0:02:45]} 10. Bd3 {[%clk 0:02:30]}  c5 {[%clk 0:02:44]} 11. dxc5 {[%clk 0:02:29]}  bxc5 {[%clk 0:02:42]} 12. O-O {[%clk 0:02:24]}  Rc8 {[%clk 0:02:39]} 13. Rad1 {[%clk 0:02:23]}  d4 {[%clk 0:02:05]} 14. Ne4 {[%clk 0:02:20]}  h6 {[%clk 0:02:00]} 15. Nxf6+ {[%clk 0:02:15]}  Bxf6 {[%clk 0:01:57]} 16. Qe2 {[%clk 0:02:13]}  Re8 {[%clk 0:01:54]} 17. Bb5 {[%clk 0:02:03]}  Re6 {[%clk 0:01:41]} 18. Nd2 {[%clk 0:01:45]}  Nb6 {[%clk 0:01:33]} 19. Nc4 {[%clk 0:01:41]}  Nd5 {[%clk 0:01:23]} 20. Bg3 {[%clk 0:01:34]}  Qe7 {[%clk 0:01:19]} 21. Qg4 {[%clk 0:01:26]}  a6 {[%clk 0:01:08]} 22. Ba4 {[%clk 0:01:23]}  Rd8 {[%clk 0:00:43]} 23. Bb3 {[%clk 0:01:11]}  Re4 {[%clk 0:00:38]} 24. Qh5 {[%clk 0:01:11]}  dxe3 {[%clk 0:00:34]} 25. Nxe3 {[%clk 0:01:05]}  Rxe3 {[%clk 0:00:10]} 26. Bxd5 {[%clk 0:00:47]}  Bxd5 {[%clk 0:00:06]} 27. fxe3 {[%clk 0:00:43]}  Qxe3+ {[%clk 0:00:05]} 28. Kh2 {[%clk 0:00:43]}  Qe4 {[%clk 0:00:06]} 29. Rf2 {[%clk 0:00:36]}  Bxa2 {[%clk 0:00:04]} 30. Rxd8+ {[%clk 0:00:35]}  Bxd8 {[%clk 0:00:05]} 31. Qxc5 {[%clk 0:00:34]}  Bf6 {[%clk 0:00:05]} 32. Qc8+ {[%clk 0:00:32]}  Kh7 {[%clk 0:00:05]} 33. Qf5+ {[%clk 0:00:31]}  Qxf5 {[%clk 0:00:05]} 34. Rxf5 {[%clk 0:00:31]}  Bc4 {[%clk 0:00:05]} 35. Rf2 {[%clk 0:00:27]}  Bb5 {[%clk 0:00:05]} 36. Rd2 {[%clk 0:00:25]}  g5 {[%clk 0:00:04]} 37. Bd6 {[%clk 0:00:23]}  Kg6 {[%clk 0:00:04]} 38. Kg3 {[%clk 0:00:22]}  Kf5 {[%clk 0:00:04]} 39. Bc5 {[%clk 0:00:21]}  Bg7 {[%clk 0:00:04]} 40. Bd4 {[%clk 0:00:20]}  Bf8 {[%clk 0:00:04]} 41. Rf2+ {[%clk 0:00:19]}  Ke4 {[%clk 0:00:04]} 42. Bf6 {[%clk 0:00:20]}  Bd6+ {[%clk 0:00:04]} 43. Kg4 {[%clk 0:00:20]}  Bc5 {[%clk 0:00:04]} 44. Rc2 {[%clk 0:00:19]}  Be3 {[%clk 0:00:03]} 45. Kh5 {[%clk 0:00:18]}  Bd3 {[%clk 0:00:03]} 46. Rc6 {[%clk 0:00:17]}  Kd5 {[%clk 0:00:02]} 47. Rc8 {[%clk 0:00:16]}  Bg6+ {[%clk 0:00:02]} 48. Kxh6 {[%clk 0:00:16]}  g4+ {[%clk 0:00:02]} 49. Kg7 {[%clk 0:00:16]}  g3 {[%clk 0:00:02]} 50. Rd8+ {[%clk 0:00:16]}  Kc4 {[%clk 0:00:01]} 51. Bh4 {[%clk 0:00:15]} 1-0


[Site "https://www.chess.com"]

[Event "Titled Tuesday Blitz September 27 Early 2022"]
[White "Khoroshev, Nikita"]
[Black "Murtazin, Ruslan"]
[WhiteFideId "14200287"]
[BlackFideId "24175960"]
[WhiteElo "2354"]
[BlackElo "2212"]
[Result "0-1"]
[Round "01"]
[TimeControl "180+1"]
[Date "2022.09.27"]
[WhiteClock "0:02:04"]
[BlackClock "0:00:50"]

1. e4 {[%clk 0:03:00]}  e6 {[%clk 0:02:59]} 2. d4 {[%clk 0:03:00]}  d5 {[%clk 0:03:00]} 3. Nc3 {[%clk 0:03:00]}  Nf6 {[%clk 0:03:00]} 4. Bg5 {[%clk 0:03:00]}  dxe4 {[%clk 0:02:59]} 5. Nxe4 {[%clk 0:03:01]}  Be7 {[%clk 0:03:00]} 6. Bxf6 {[%clk 0:03:01]}  gxf6 {[%clk 0:03:00]} 7. Qd2 {[%clk 0:03:02]}  f5 {[%clk 0:02:48]} 8. Nc3 {[%clk 0:03:01]}  a6 {[%clk 0:02:34]} 9. Nf3 {[%clk 0:02:57]}  b5 {[%clk 0:02:30]} 10. a4 {[%clk 0:02:51]}  b4 {[%clk 0:02:28]} 11. Ne2 {[%clk 0:02:51]}  Bb7 {[%clk 0:02:24]} 12. Ne5 {[%clk 0:02:51]}  Nd7 {[%clk 0:02:11]} 13. O-O-O {[%clk 0:02:40]}  Nxe5 {[%clk 0:02:01]} 14. dxe5 {[%clk 0:02:41]}  Qxd2+ {[%clk 0:02:02]} 15. Rxd2 {[%clk 0:02:42]}  Rd8 {[%clk 0:02:02]} 16. Rxd8+ {[%clk 0:02:35]}  Bxd8 {[%clk 0:01:53]} 17. h4 {[%clk 0:02:34]}  h5 {[%clk 0:01:52]} 18. Rh3 {[%clk 0:02:32]}  Rg8 {[%clk 0:01:50]} 19. f3 {[%clk 0:02:25]}  c5 {[%clk 0:01:43]} 20. Nf4 {[%clk 0:02:25]}  Bc7 {[%clk 0:01:42]} 21. Nd3 {[%clk 0:02:16]}  c4 {[%clk 0:01:22]} 22. Nc5 {[%clk 0:02:16]}  Bc8 {[%clk 0:01:18]} 23. f4 {[%clk 0:02:13]}  Bb6 {[%clk 0:01:03]} 24. Nxa6 {[%clk 0:02:09]}  Bxa6 {[%clk 0:01:03]} 25. b3 {[%clk 0:02:09]}  Rg4 {[%clk 0:00:59]} 26. g3 {[%clk 0:02:09]}  Bf2 {[%clk 0:00:57]} 27. Be2 {[%clk 0:02:07]}  Rxg3 {[%clk 0:00:56]} 28. Rh1 {[%clk 0:02:05]}  Be3+ {[%clk 0:00:54]} 29. Kd1 {[%clk 0:02:04]}  Bxf4 {[%clk 0:00:55]} 30. bxc4 {[%clk 0:02:04]}  Ra3 {[%clk 0:00:50]} 0-1


[Site "https://www.chess.com"]

[Event "Titled Tuesday Blitz September 27 Early 2022"]
[White "Kostiukov, Alexandr"]
[Black "Malek, Jan"]
[WhiteFideId "14108100"]
[BlackFideId "21864080"]
[WhiteElo "2202"]
[BlackElo "2172"]
[Result "0-1"]
[Round "01"]
[TimeControl "180+1"]
[Date "2022.09.27"]
[WhiteClock "0:00:08"]
[BlackClock "0:01:20"]

1. g3 {[%clk 0:02:57]}  d5 {[%clk 0:02:59]} 2. Bg2 {[%clk 0:02:58]}  Nc6 {[%clk 0:02:58]} 3. d4 {[%clk 0:02:57]}  Bg4 {[%clk 0:02:57]} 4. Nf3 {[%clk 0:02:57]}  e6 {[%clk 0:02:54]} 5. Ne5 {[%clk 0:02:56]}  Nxe5 {[%clk 0:02:53]} 6. dxe5 {[%clk 0:02:57]}  c6 {[%clk 0:02:50]} 7. O-O {[%clk 0:02:49]}  Bc5 {[%clk 0:02:48]} 8. Nd2 {[%clk 0:02:27]}  Ne7 {[%clk 0:02:48]} 9. Nf3 {[%clk 0:02:26]}  Ng6 {[%clk 0:02:46]} 10. Re1 {[%clk 0:02:13]}  Qb6 {[%clk 0:02:44]} 11. Rf1 {[%clk 0:02:00]}  Bxf3 {[%clk 0:02:42]} 12. exf3 {[%clk 0:01:58]}  Nxe5 {[%clk 0:02:43]} 13. f4 {[%clk 0:01:57]}  Nd7 {[%clk 0:02:37]} 14. f5 {[%clk 0:01:51]}  O-O {[%clk 0:02:34]} 15. fxe6 {[%clk 0:01:42]}  fxe6 {[%clk 0:02:34]} 16. Qe2 {[%clk 0:01:42]}  Kh8 {[%clk 0:02:32]} 17. Qxe6 {[%clk 0:01:29]}  Rxf2 {[%clk 0:02:25]} 18. Rxf2 {[%clk 0:01:28]}  Bxf2+ {[%clk 0:02:26]} 19. Kh1 {[%clk 0:01:28]}  Nf6 {[%clk 0:02:10]} 20. Qf5 {[%clk 0:01:11]}  Be3 {[%clk 0:01:59]} 21. Bxe3 {[%clk 0:00:59]}  Qxe3 {[%clk 0:02:00]} 22. Rf1 {[%clk 0:00:48]}  Re8 {[%clk 0:01:59]} 23. a4 {[%clk 0:00:39]}  Qd4 {[%clk 0:01:57]} 24. b3 {[%clk 0:00:36]}  h6 {[%clk 0:01:54]} 25. h3 {[%clk 0:00:32]}  Qe5 {[%clk 0:01:53]} 26. Qxe5 {[%clk 0:00:30]}  Rxe5 {[%clk 0:01:53]} 27. Rf2 {[%clk 0:00:30]}  Kh7 {[%clk 0:01:48]} 28. Bf3 {[%clk 0:00:30]}  Re1+ {[%clk 0:01:47]} 29. Kg2 {[%clk 0:00:30]}  Kg6 {[%clk 0:01:46]} 30. Rd2 {[%clk 0:00:25]}  Kf5 {[%clk 0:01:42]} 31. Kf2 {[%clk 0:00:24]}  Rc1 {[%clk 0:01:42]} 32. Ke2 {[%clk 0:00:19]}  Ke5 {[%clk 0:01:36]} 33. Kd3 {[%clk 0:00:16]}  Rg1 {[%clk 0:01:36]} 34. Bg2 {[%clk 0:00:13]}  Ne4 {[%clk 0:01:28]} 35. Re2 {[%clk 0:00:12]}  Rd1+ {[%clk 0:01:23]} 36. Ke3 {[%clk 0:00:08]}  Nxg3 {[%clk 0:01:20]} 0-1


[Site "https://www.chess.com"]

[Event "Titled Tuesday Blitz September 27 Early 2022"]
[White "Koutlas, Nikolaos"]
[Black "Koziorowicz, Michal"]
[WhiteFideId "25827138"]
[BlackFideId "21809194"]
[WhiteElo "1738"]
[BlackElo "2220"]
[Result "0-1"]
[Round "01"]
[TimeControl "180+1"]
[Date "2022.09.27"]
[WhiteClock "0:00:50"]
[BlackClock "0:00:13"]

1. g3 {[%clk 0:03:00]}  e5 {[%clk 0:02:50]} 2. Bg2 {[%clk 0:03:00]}  Nf6 {[%clk 0:02:49]} 3. c4 {[%clk 0:03:01]}  c6 {[%clk 0:02:42]} 4. Nc3 {[%clk 0:03:00]}  d5 {[%clk 0:02:42]} 5. cxd5 {[%clk 0:03:00]}  cxd5 {[%clk 0:02:43]} 6. d3 {[%clk 0:03:00]}  Nc6 {[%clk 0:02:40]} 7. Bg5 {[%clk 0:02:59]}  Be6 {[%clk 0:02:40]} 8. e4 {[%clk 0:02:54]}  d4 {[%clk 0:02:34]} 9. Nd5 {[%clk 0:02:53]}  h6 {[%clk 0:02:02]} 10. Nxf6+ {[%clk 0:02:44]}  gxf6 {[%clk 0:02:03]} 11. Bd2 {[%clk 0:02:44]}  h5 {[%clk 0:02:02]} 12. f4 {[%clk 0:02:39]}  Bg4 {[%clk 0:01:52]} 13. Nf3 {[%clk 0:02:36]}  h4 {[%clk 0:01:48]} 14. h3 {[%clk 0:02:27]}  Bxf3 {[%clk 0:01:48]} 15. Qxf3 {[%clk 0:02:28]}  hxg3 {[%clk 0:01:48]} 16. Qxg3 {[%clk 0:02:29]}  Qb6 {[%clk 0:01:41]} 17. b3 {[%clk 0:02:26]}  O-O-O {[%clk 0:01:41]} 18. Rc1 {[%clk 0:02:25]}  Kb8 {[%clk 0:01:40]} 19. fxe5 {[%clk 0:02:12]}  fxe5 {[%clk 0:00:55]} 20. O-O {[%clk 0:02:13]}  Ba3 {[%clk 0:00:51]} 21. Rc4 {[%clk 0:02:02]}  Rdg8 {[%clk 0:00:50]} 22. Qh2 {[%clk 0:01:59]}  Qc7 {[%clk 0:00:44]} 23. Rf5 {[%clk 0:01:55]}  Bd6 {[%clk 0:00:40]} 24. b4 {[%clk 0:01:54]}  Qe7 {[%clk 0:00:38]} 25. b5 {[%clk 0:01:49]}  Nd8 {[%clk 0:00:39]} 26. a3 {[%clk 0:01:30]}  Rg7 {[%clk 0:00:34]} 27. Kf1 {[%clk 0:01:21]}  Rhg8 {[%clk 0:00:33]} 28. Bf3 {[%clk 0:01:21]}  f6 {[%clk 0:00:30]} 29. Bb4 {[%clk 0:01:17]}  Bxb4 {[%clk 0:00:30]} 30. axb4 {[%clk 0:01:18]}  Ne6 {[%clk 0:00:29]} 31. Bg4 {[%clk 0:01:14]}  Nf4 {[%clk 0:00:24]} 32. Rxf4 {[%clk 0:01:13]}  exf4 {[%clk 0:00:25]} 33. Qxf4+ {[%clk 0:01:14]}  Qe5 {[%clk 0:00:25]} 34. Qxe5+ {[%clk 0:01:08]}  fxe5 {[%clk 0:00:26]} 35. Rc5 {[%clk 0:01:09]}  Re8 {[%clk 0:00:25]} 36. Kf2 {[%clk 0:01:08]}  Rc7 {[%clk 0:00:24]} 37. Rd5 {[%clk 0:01:04]}  Rc2+ {[%clk 0:00:23]} 38. Kg3 {[%clk 0:01:02]}  Rd2 {[%clk 0:00:22]} 39. Bf5 {[%clk 0:00:57]}  Rxd3+ {[%clk 0:00:22]} 40. Kg4 {[%clk 0:00:56]}  Rd1 {[%clk 0:00:21]} 41. h4 {[%clk 0:00:56]}  d3 {[%clk 0:00:21]} 42. h5 {[%clk 0:00:56]}  d2 {[%clk 0:00:22]} 43. Kf3 {[%clk 0:00:56]}  Rg8 {[%clk 0:00:19]} 44. h6 {[%clk 0:00:53]}  Rgg1 {[%clk 0:00:15]} 45. h7 {[%clk 0:00:50]}  Rh1 {[%clk 0:00:13]} 0-1


[Site "https://www.chess.com"]

[Event "Titled Tuesday Blitz September 27 Early 2022"]
[White "Kukreja, Sankalp"]
[Black "Mikhailovsky, Vladimir"]
[WhiteFideId "45027676"]
[BlackFideId "34105414"]
[WhiteElo "2004"]
[BlackElo "2297"]
[Result "1-0"]
[Round "01"]
[TimeControl "180+1"]
[Date "2022.09.27"]
[WhiteClock "0:00:08"]
[BlackClock "0:00:01"]

1. e4 {[%clk 0:03:00]}  c6 {[%clk 0:02:56]} 2. d4 {[%clk 0:03:00]}  d5 {[%clk 0:02:57]} 3. exd5 {[%clk 0:03:01]}  cxd5 {[%clk 0:02:57]} 4. c4 {[%clk 0:03:02]}  Nf6 {[%clk 0:02:56]} 5. Nc3 {[%clk 0:03:02]}  Nc6 {[%clk 0:02:55]} 6. Nf3 {[%clk 0:03:02]}  g6 {[%clk 0:02:42]} 7. Qb3 {[%clk 0:02:49]}  Na5 {[%clk 0:02:39]} 8. Qc2 {[%clk 0:02:32]}  Nxc4 {[%clk 0:02:34]} 9. b3 {[%clk 0:02:29]}  Bf5 {[%clk 0:02:22]} 10. Bd3 {[%clk 0:02:26]}  Nd6 {[%clk 0:02:22]} 11. Nb5 {[%clk 0:02:01]}  Rc8 {[%clk 0:02:09]} 12. Nxd6+ {[%clk 0:02:01]}  Qxd6 {[%clk 0:02:08]} 13. Bb5+ {[%clk 0:01:56]}  Kd8 {[%clk 0:01:54]} 14. Qe2 {[%clk 0:01:56]}  Rc2 {[%clk 0:01:37]} 15. Bd2 {[%clk 0:01:42]}  Ne4 {[%clk 0:01:34]} 16. Ba5+ {[%clk 0:01:22]}  b6 {[%clk 0:01:13]} 17. Qxc2 {[%clk 0:01:21]}  bxa5 {[%clk 0:01:10]} 18. Ne5 {[%clk 0:01:20]}  Qb4+ {[%clk 0:01:05]} 19. Kf1 {[%clk 0:00:53]}  Qxb5+ {[%clk 0:00:54]} 20. Kg1 {[%clk 0:00:53]}  Ng3 {[%clk 0:00:36]} 21. Qd2 {[%clk 0:00:21]}  Ne2+ {[%clk 0:00:23]} 22. Kf1 {[%clk 0:00:22]}  Nc3+ {[%clk 0:00:14]} 23. Kg1 {[%clk 0:00:11]}  Ne4 {[%clk 0:00:15]} 24. Qc2 {[%clk 0:00:09]}  Be6 {[%clk 0:00:03]} 25. Rc1 {[%clk 0:00:08]}  Qb7 {[%clk 0:00:03]} 26. Nc6+ {[%clk 0:00:07]}  Ke8 {[%clk 0:00:03]} 27. Nxa5 {[%clk 0:00:07]}  Qb6 {[%clk 0:00:01]} 28. Qc6+ {[%clk 0:00:07]}  Qxc6 {[%clk 0:00:01]} 29. Nxc6 {[%clk 0:00:08]} 1-0


[Site "https://www.chess.com"]

[Event "Titled Tuesday Blitz September 27 Early 2022"]
[White "Kukula, Pawel"]
[Black "Yilmaz, Mustafa"]
[WhiteFideId "1115081"]
[BlackFideId "6302718"]
[WhiteElo "2062"]
[BlackElo "2568"]
[Result "0-1"]
[Round "01"]
[TimeControl "180+1"]
[Date "2022.09.27"]
[WhiteClock "0:02:17"]
[BlackClock "0:01:53"]

1. e4 {[%clk 0:03:00]}  c5 {[%clk 0:02:57]} 2. Nf3 {[%clk 0:02:59]}  d6 {[%clk 0:02:57]} 3. d4 {[%clk 0:02:58]}  cxd4 {[%clk 0:02:58]} 4. Nxd4 {[%clk 0:02:59]}  Nf6 {[%clk 0:02:59]} 5. Nc3 {[%clk 0:02:59]}  Nc6 {[%clk 0:02:59]} 6. Bg5 {[%clk 0:02:59]}  e6 {[%clk 0:02:59]} 7. Qd2 {[%clk 0:02:59]}  a6 {[%clk 0:02:59]} 8. O-O-O {[%clk 0:02:59]}  Bd7 {[%clk 0:02:59]} 9. f4 {[%clk 0:02:59]}  Be7 {[%clk 0:02:57]} 10. Nxc6 {[%clk 0:02:56]}  Bxc6 {[%clk 0:02:55]} 11. Qe1 {[%clk 0:02:57]}  Qc7 {[%clk 0:02:31]} 12. e5 {[%clk 0:02:50]}  dxe5 {[%clk 0:02:28]} 13. fxe5 {[%clk 0:02:51]}  Nd5 {[%clk 0:02:21]} 14. Bxe7 {[%clk 0:02:52]}  Nxe7 {[%clk 0:02:12]} 15. Bd3 {[%clk 0:02:49]}  Ng6 {[%clk 0:02:03]} 16. Bxg6 {[%clk 0:02:41]}  hxg6 {[%clk 0:02:04]} 17. Qe2 {[%clk 0:02:21]}  Rh5 {[%clk 0:02:02]} 18. Rd6 {[%clk 0:02:17]}  Qa5 {[%clk 0:01:53]} 0-1


[Site "https://www.chess.com"]

[Event "Titled Tuesday Blitz September 27 Early 2022"]
[White "Le, Tuan Minh"]
[Black "Kouskoutis, Georgios-Alexandros"]
[WhiteFideId "12401153"]
[BlackFideId "4234049"]
[WhiteElo "2530"]
[BlackElo "2130"]
[Result "1-0"]
[Round "01"]
[TimeControl "180+1"]
[Date "2022.09.27"]
[WhiteClock "0:00:16"]
[BlackClock "0:00:01"]

1. d4 {[%clk 0:03:00]}  Nf6 {[%clk 0:03:00]} 2. Nf3 {[%clk 0:02:58]}  d5 {[%clk 0:02:59]} 3. Bf4 {[%clk 0:02:56]}  c5 {[%clk 0:02:59]} 4. c3 {[%clk 0:02:56]}  Nc6 {[%clk 0:03:00]} 5. e3 {[%clk 0:02:56]}  Qb6 {[%clk 0:02:58]} 6. Qc2 {[%clk 0:02:55]}  g6 {[%clk 0:02:56]} 7. Nbd2 {[%clk 0:02:55]}  Bf5 {[%clk 0:02:54]} 8. dxc5 {[%clk 0:02:55]}  Qxc5 {[%clk 0:02:51]} 9. Qb3 {[%clk 0:02:51]}  Qb6 {[%clk 0:02:20]} 10. Be2 {[%clk 0:02:33]}  Bg7 {[%clk 0:02:11]} 11. O-O {[%clk 0:02:32]}  O-O {[%clk 0:02:10]} 12. Rfd1 {[%clk 0:02:30]}  Qxb3 {[%clk 0:01:45]} 13. axb3 {[%clk 0:02:30]}  Nh5 {[%clk 0:01:41]} 14. Bg5 {[%clk 0:02:24]}  h6 {[%clk 0:01:35]} 15. Bh4 {[%clk 0:02:23]}  g5 {[%clk 0:01:34]} 16. Bg3 {[%clk 0:02:21]}  Nxg3 {[%clk 0:01:33]} 17. hxg3 {[%clk 0:02:21]}  a5 {[%clk 0:01:20]} 18. Nb1 {[%clk 0:02:02]}  e6 {[%clk 0:01:13]} 19. Na3 {[%clk 0:01:45]}  Rfc8 {[%clk 0:01:07]} 20. Rd2 {[%clk 0:01:39]}  b6 {[%clk 0:00:40]} 21. Nb5 {[%clk 0:01:39]}  Rd8 {[%clk 0:00:40]} 22. Rad1 {[%clk 0:01:15]}  Na7 {[%clk 0:00:31]} 23. Nbd4 {[%clk 0:01:11]}  Be4 {[%clk 0:00:27]} 24. Bf1 {[%clk 0:01:08]}  Rac8 {[%clk 0:00:26]} 25. Ne1 {[%clk 0:01:03]}  g4 {[%clk 0:00:18]} 26. Be2 {[%clk 0:00:58]}  h5 {[%clk 0:00:18]} 27. f3 {[%clk 0:00:58]}  Bg6 {[%clk 0:00:15]} 28. fxg4 {[%clk 0:00:57]}  Bh6 {[%clk 0:00:13]} 29. Kf2 {[%clk 0:00:56]}  hxg4 {[%clk 0:00:11]} 30. Bxg4 {[%clk 0:00:57]}  Re8 {[%clk 0:00:11]} 31. Nef3 {[%clk 0:00:56]}  Nc6 {[%clk 0:00:08]} 32. Nxc6 {[%clk 0:00:55]}  Rxc6 {[%clk 0:00:09]} 33. Ne5 {[%clk 0:00:55]}  Rc7 {[%clk 0:00:08]} 34. Rh1 {[%clk 0:00:50]}  Bg7 {[%clk 0:00:08]} 35. Nxg6 {[%clk 0:00:45]}  fxg6 {[%clk 0:00:09]} 36. e4 {[%clk 0:00:46]}  dxe4 {[%clk 0:00:06]} 37. Re2 {[%clk 0:00:46]}  e5 {[%clk 0:00:03]} 38. Rxe4 {[%clk 0:00:46]}  b5 {[%clk 0:00:04]} 39. Be2 {[%clk 0:00:46]}  Rb7 {[%clk 0:00:04]} 40. Rg4 {[%clk 0:00:40]}  Rb6 {[%clk 0:00:04]} 41. Rd1 {[%clk 0:00:39]}  b4 {[%clk 0:00:04]} 42. Bc4+ {[%clk 0:00:39]}  Kf8 {[%clk 0:00:04]} 43. Ke3 {[%clk 0:00:39]}  e4 {[%clk 0:00:03]} 44. Rf1+ {[%clk 0:00:39]}  Rf6 {[%clk 0:00:04]} 45. Rxf6+ {[%clk 0:00:34]}  Bxf6 {[%clk 0:00:05]} 46. Rxg6 {[%clk 0:00:34]}  Bg7 {[%clk 0:00:04]} 47. Rg4 {[%clk 0:00:19]}  Bh6+ {[%clk 0:00:03]} 48. Ke2 {[%clk 0:00:18]}  e3 {[%clk 0:00:01]} 49. Rh4 {[%clk 0:00:16]} 1-0


[Site "https://www.chess.com"]

[Event "Titled Tuesday Blitz September 27 Early 2022"]
[White "Lewtak, Damian"]
[Black "Kuchava, Ana"]
[WhiteFideId "1141724"]
[BlackFideId "13605348"]
[WhiteElo "2329"]
[BlackElo "1955"]
[Result "1-0"]
[Round "01"]
[TimeControl "180+1"]
[Date "2022.09.27"]
[WhiteClock "0:00:08"]
[BlackClock "0:00:05"]

1. h4 {[%clk 0:02:57]}  d5 {[%clk 0:02:58]} 2. d3 {[%clk 0:02:55]}  Nf6 {[%clk 0:02:56]} 3. g3 {[%clk 0:02:54]}  e5 {[%clk 0:02:53]} 4. Bg2 {[%clk 0:02:54]}  Be6 {[%clk 0:02:50]} 5. e3 {[%clk 0:02:54]}  c6 {[%clk 0:02:50]} 6. Ne2 {[%clk 0:02:54]}  Bd6 {[%clk 0:02:50]} 7. b3 {[%clk 0:02:54]}  O-O {[%clk 0:02:37]} 8. Bb2 {[%clk 0:02:54]}  Nbd7 {[%clk 0:02:36]} 9. Nd2 {[%clk 0:02:54]}  c5 {[%clk 0:02:26]} 10. a3 {[%clk 0:02:47]}  Rc8 {[%clk 0:02:25]} 11. e4 {[%clk 0:02:44]}  d4 {[%clk 0:02:15]} 12. a4 {[%clk 0:02:33]}  a6 {[%clk 0:02:13]} 13. a5 {[%clk 0:02:33]}  Bc7 {[%clk 0:02:11]} 14. O-O {[%clk 0:02:28]}  Bxa5 {[%clk 0:02:02]} 15. Nf3 {[%clk 0:02:28]}  Bc7 {[%clk 0:01:57]} 16. Ng5 {[%clk 0:02:28]}  Qe7 {[%clk 0:01:57]} 17. Nxe6 {[%clk 0:02:28]}  Qxe6 {[%clk 0:01:58]} 18. f3 {[%clk 0:02:24]}  b5 {[%clk 0:01:55]} 19. Kh2 {[%clk 0:02:24]}  c4 {[%clk 0:01:53]} 20. Bh3 {[%clk 0:02:12]}  Qc6 {[%clk 0:01:51]} 21. bxc4 {[%clk 0:02:11]}  bxc4 {[%clk 0:01:51]} 22. Ba3 {[%clk 0:02:11]}  Bd6 {[%clk 0:01:44]} 23. Bxd6 {[%clk 0:02:04]}  Qxd6 {[%clk 0:01:45]} 24. Qd2 {[%clk 0:01:56]}  c3 {[%clk 0:01:44]} 25. Qc1 {[%clk 0:01:54]}  Rb8 {[%clk 0:01:43]} 26. Ra2 {[%clk 0:01:53]}  Rb6 {[%clk 0:01:40]} 27. Qa1 {[%clk 0:01:52]}  Rfb8 {[%clk 0:01:37]} 28. Rc1 {[%clk 0:01:37]}  h6 {[%clk 0:01:36]} 29. Ra5 {[%clk 0:01:28]}  Nc5 {[%clk 0:01:25]} 30. Qa3 {[%clk 0:01:27]}  Nb7 {[%clk 0:01:18]} 31. Qxd6 {[%clk 0:01:19]}  Nxd6 {[%clk 0:01:19]} 32. Rxe5 {[%clk 0:01:18]}  Rb1 {[%clk 0:01:13]} 33. Rxb1 {[%clk 0:01:15]}  Rxb1 {[%clk 0:01:14]} 34. Nxd4 {[%clk 0:01:15]}  Rc1 {[%clk 0:00:59]} 35. Bg2 {[%clk 0:00:59]}  Nb5 {[%clk 0:00:56]} 36. Nxb5 {[%clk 0:00:58]}  axb5 {[%clk 0:00:56]} 37. Rxb5 {[%clk 0:00:59]}  Rxc2 {[%clk 0:00:57]} 38. Rc5 {[%clk 0:00:55]}  Nd7 {[%clk 0:00:56]} 39. Rc8+ {[%clk 0:00:53]}  Kh7 {[%clk 0:00:56]} 40. d4 {[%clk 0:00:53]}  Nb6 {[%clk 0:00:53]} 41. Rc6 {[%clk 0:00:52]}  Na4 {[%clk 0:00:49]} 42. d5 {[%clk 0:00:40]}  Rd2 {[%clk 0:00:47]} 43. f4 {[%clk 0:00:38]}  c2 {[%clk 0:00:35]} 44. d6 {[%clk 0:00:32]}  Nb6 {[%clk 0:00:33]} 45. e5 {[%clk 0:00:30]}  Nd5 {[%clk 0:00:26]} 46. Kh3 {[%clk 0:00:21]}  Ne3 {[%clk 0:00:26]} 47. Be4+ {[%clk 0:00:21]}  g6 {[%clk 0:00:26]} 48. Rc7 {[%clk 0:00:19]}  h5 {[%clk 0:00:20]} 49. Rxf7+ {[%clk 0:00:14]}  Kh6 {[%clk 0:00:20]} 50. Rc7 {[%clk 0:00:09]}  Rd1 {[%clk 0:00:12]} 51. d7 {[%clk 0:00:07]}  c1=Q {[%clk 0:00:10]} 52. Rxc1 {[%clk 0:00:07]}  Rxd7 {[%clk 0:00:10]} 53. Re1 {[%clk 0:00:05]}  Ng4 {[%clk 0:00:10]} 54. Bf3 {[%clk 0:00:05]}  Rd2 {[%clk 0:00:07]} 55. Bxg4 {[%clk 0:00:05]}  hxg4+ {[%clk 0:00:07]} 56. Kxg4 {[%clk 0:00:06]}  Rd8 {[%clk 0:00:05]} 57. Rc1 {[%clk 0:00:06]}  Re8 {[%clk 0:00:04]} 58. Rc6 {[%clk 0:00:06]}  Kg7 {[%clk 0:00:04]} 59. Rf6 {[%clk 0:00:06]}  Rh8 {[%clk 0:00:04]} 60. Ra6 {[%clk 0:00:05]}  Rb8 {[%clk 0:00:03]} 61. Ra7+ {[%clk 0:00:05]}  Kg8 {[%clk 0:00:03]} 62. Kg5 {[%clk 0:00:06]}  Rb6 {[%clk 0:00:04]} 63. g4 {[%clk 0:00:06]}  Kf8 {[%clk 0:00:04]} 64. h5 {[%clk 0:00:06]}  gxh5 {[%clk 0:00:04]} 65. Kxh5 {[%clk 0:00:06]}  Kg8 {[%clk 0:00:05]} 66. Kg5 {[%clk 0:00:07]}  Rb4 {[%clk 0:00:05]} 67. f5 {[%clk 0:00:07]}  Rb6 {[%clk 0:00:05]} 68. e6 {[%clk 0:00:08]}  Kf8 {[%clk 0:00:05]} 69. Kf6 {[%clk 0:00:08]}  Kg8 {[%clk 0:00:05]} 70. Ra8+ {[%clk 0:00:08]}  Kh7 {[%clk 0:00:05]} 71. Kf7 {[%clk 0:00:08]} 1-0


[Site "https://www.chess.com"]